[Event "*** Titled Tuesday Blitz"]
[Site "Chess.com"]
[Date "2021.04.06"]
[Round "6"]
[White "Kobalia"]
[Black "louis198"]
[Result "1-0"]
[WhiteElo "2776"]
[BlackElo "2560"]
[TimeControl "180+1"]
[EndTime "11:09:45 PDT"]
[Termination "Kobalia won by resignation"]

1. e4 {[%clk 0:03:00.9]} 1... e6 {[%clk 0:02:59.6]} 2. d3 {[%clk 0:03:00.5]}
2... d5 {[%clk 0:03:00.1]} 3. Nd2 {[%clk 0:03:01]} 3... Nf6 {[%clk 0:03:00.4]}
4. Ngf3 {[%clk 0:03:01.3]} 4... Bc5 {[%clk 0:03:00.9]} 5. e5 {[%clk 0:02:55.7]}
5... Nfd7 {[%clk 0:03:00.5]} 6. d4 {[%clk 0:02:56.1]} 6... Bb6 {[%clk
0:03:01.1]} 7. Be2 {[%clk 0:02:48.1]} 7... c5 {[%clk 0:03:00.2]} 8. c3 {[%clk
0:02:48.4]} 8... Nc6 {[%clk 0:03:00]} 9. Nb3 {[%clk 0:02:48.5]} 9... h6 {[%clk
0:02:55.9]} 10. Be3 {[%clk 0:02:46.5]} 10... Qe7 {[%clk 0:02:53.1]} 11. O-O
{[%clk 0:02:42.2]} 11... O-O {[%clk 0:02:43.5]} 12. Re1 {[%clk 0:02:37.8]} 12...
Bc7 {[%clk 0:02:31.6]} 13. Rc1 {[%clk 0:02:23.2]} 13... c4 {[%clk 0:02:23.7]}
14. Nbd2 {[%clk 0:02:22.3]} 14... f6 {[%clk 0:02:24]} 15. exf6 {[%clk
0:02:21.4]} 15... Nxf6 {[%clk 0:02:17.8]} 16. Nf1 {[%clk 0:02:13.8]} 16... Ng4
{[%clk 0:02:06.9]} 17. Bd2 {[%clk 0:02:13.4]} 17... e5 {[%clk 0:01:57.3]} 18.
dxe5 {[%clk 0:02:11.1]} 18... Ngxe5 {[%clk 0:01:54.2]} 19. Ng3 {[%clk
0:02:06.2]} 19... Qf7 {[%clk 0:01:47]} 20. Be3 {[%clk 0:02:01.5]} 20... Bd7
{[%clk 0:01:44.6]} 21. Bc5 {[%clk 0:01:58.9]} 21... Rfe8 {[%clk 0:01:40.2]} 22.
Nxe5 {[%clk 0:01:58.6]} 22... Nxe5 {[%clk 0:01:37.5]} 23. Bh5 {[%clk 0:01:58]}
23... g6 {[%clk 0:01:25.3]} 24. Be2 {[%clk 0:01:57.4]} 24... h5 {[%clk
0:01:23.5]} 25. h3 {[%clk 0:01:56.9]} 25... h4 {[%clk 0:01:17]} 26. Nf1 {[%clk
0:01:56.5]} 26... Bf5 {[%clk 0:01:14.7]} 27. Ne3 {[%clk 0:01:51.5]} 27... Bd3
{[%clk 0:01:13.7]} 28. Bd4 {[%clk 0:01:45.1]} 28... Bxe2 {[%clk 0:01:12.5]} 29.
Rxe2 {[%clk 0:01:42.4]} 29... Nd3 {[%clk 0:01:13.4]} 30. Rcc2 {[%clk 0:01:40.6]}
30... Qf4 {[%clk 0:00:45.8]} 31. Ng4 {[%clk 0:01:37.1]} 31... b6 {[%clk
0:00:29.4]} 32. Be3 {[%clk 0:01:18.1]} 32... Qd6 {[%clk 0:00:22.3]} 33. Qd2
{[%clk 0:01:16.4]} 33... Re4 {[%clk 0:00:21.1]} 34. f4 {[%clk 0:00:53.9]} 34...
Rae8 {[%clk 0:00:18]} 35. Qd1 {[%clk 0:00:53.7]} 35... Nxf4 {[%clk 0:00:16.4]}
36. Bxf4 {[%clk 0:00:52.1]} 36... Qxf4 {[%clk 0:00:15.9]} 37. Qxd5+ {[%clk
0:00:51.2]} 37... Kg7 {[%clk 0:00:16.1]} 38. Rxe4 {[%clk 0:00:44.9]} 38... Qxe4
{[%clk 0:00:14.9]} 39. Qxe4 {[%clk 0:00:36.9]} 39... Rxe4 {[%clk 0:00:15.8]} 40.
Kf2 {[%clk 0:00:37.3]} 40... Bg3+ {[%clk 0:00:15.6]} 41. Kf3 {[%clk 0:00:37.3]}
41... Re1 {[%clk 0:00:15.8]} 42. Re2 {[%clk 0:00:35]} 42... Rf1+ {[%clk
0:00:16]} 43. Ke4 {[%clk 0:00:34.9]} 43... Rd1 {[%clk 0:00:15.3]} 44. Ne3 {[%clk
0:00:33]} 44... Rd3 {[%clk 0:00:14.5]} 45. Nxc4 {[%clk 0:00:32.3]} 45... Rd8
{[%clk 0:00:15.4]} 46. Rd2 {[%clk 0:00:30.1]} 46... Rc8 {[%clk 0:00:15]} 47. Kd3
{[%clk 0:00:25.8]} 47... Bf4 {[%clk 0:00:13.7]} 48. Re2 {[%clk 0:00:24.7]} 48...
b5 {[%clk 0:00:13.5]} 49. Nd2 {[%clk 0:00:23.4]} 49... Rd8+ {[%clk 0:00:13.3]}
50. Kc2 {[%clk 0:00:23.4]} 50... g5 {[%clk 0:00:13.6]} 51. Nf3 {[%clk
0:00:23.3]} 51... Kf6 {[%clk 0:00:13.1]} 52. a3 {[%clk 0:00:20.8]} 52... a5
{[%clk 0:00:13.4]} 53. Kb3 {[%clk 0:00:18.9]} 53... Rd3 {[%clk 0:00:11]} 54. Nd4
{[%clk 0:00:17.6]} 54... b4 {[%clk 0:00:09.6]} 55. axb4 {[%clk 0:00:16.8]} 55...
axb4 {[%clk 0:00:10]} 56. Kxb4 {[%clk 0:00:16.3]} 56... Be5 {[%clk 0:00:10.9]}
57. Nf3 {[%clk 0:00:14.2]} 57... Bd6+ {[%clk 0:00:10.5]} 58. Kc4 {[%clk
0:00:14]} 58... Rd1 {[%clk 0:00:10]} 59. Nd4 {[%clk 0:00:13.1]} 59... Bf4 {[%clk
0:00:09.6]} 60. b4 {[%clk 0:00:12.4]} 60... Rc1 {[%clk 0:00:10]} 61. Rb2 {[%clk
0:00:11.3]} 61... Be5 {[%clk 0:00:08.7]} 62. b5 {[%clk 0:00:11.1]} 62... Bb8
{[%clk 0:00:06]} 63. b6 {[%clk 0:00:10.9]} 63... g4 {[%clk 0:00:06.4]} 64. hxg4
{[%clk 0:00:10]} 64... Kg5 {[%clk 0:00:06.8]} 65. Nc6 {[%clk 0:00:09.8]} 65...
Bd6 {[%clk 0:00:07]} 66. b7 {[%clk 0:00:09.5]} 66... Kxg4 {[%clk 0:00:07.5]} 67.
Rd2 {[%clk 0:00:09.3]} 67... Bc7 {[%clk 0:00:07.3]} 68. Rd7 {[%clk 0:00:08.5]}
68... Bf4 {[%clk 0:00:07.2]} 69. Rd4 {[%clk 0:00:08.3]} 1-0

[Event "*** Titled Tuesday Blitz"]
[Site "Chess.com"]
[Date "2021.04.06"]
[Round "6"]
[White "Blitzking642"]
[Black "CakeinSpace2002"]
[Result "1/2-1/2"]
[WhiteElo "2447"]
[BlackElo "2318"]
[TimeControl "180+1"]
[EndTime "11:09:45 PDT"]
[Termination "Game drawn by stalemate"]

1. e4 {[%clk 0:03:00.9]} 1... c5 {[%clk 0:02:59.5]} 2. Nf3 {[%clk 0:03:01]} 2...
Nc6 {[%clk 0:02:59.6]} 3. d4 {[%clk 0:03:01.6]} 3... cxd4 {[%clk 0:03:00.5]} 4.
Nxd4 {[%clk 0:03:02.5]} 4... Nf6 {[%clk 0:03:00.9]} 5. Nc3 {[%clk 0:03:02.4]}
5... e5 {[%clk 0:03:01]} 6. Nf5 {[%clk 0:03:03]} 6... d5 {[%clk 0:03:00]} 7.
exd5 {[%clk 0:03:03.4]} 7... Bxf5 {[%clk 0:02:59.1]} 8. dxc6 {[%clk 0:03:04.3]}
8... bxc6 {[%clk 0:02:56.8]} 9. Qf3 {[%clk 0:03:03.7]} 9... Qc8 {[%clk
0:02:53.6]} 10. Bc4 {[%clk 0:02:57.8]} 10... Be7 {[%clk 0:02:48.8]} 11. O-O
{[%clk 0:02:37.2]} 11... O-O {[%clk 0:02:48.4]} 12. Qe2 {[%clk 0:02:36.3]} 12...
Bd6 {[%clk 0:02:45.3]} 13. Bg5 {[%clk 0:02:31.3]} 13... Nd7 {[%clk 0:02:36.7]}
14. Rad1 {[%clk 0:02:26.6]} 14... Qc7 {[%clk 0:02:30.3]} 15. g4 {[%clk
0:02:04.1]} 15... Bg6 {[%clk 0:02:23.3]} 16. Qd2 {[%clk 0:01:55.3]} 16... Nb6
{[%clk 0:02:22.7]} 17. Qxd6 {[%clk 0:01:53.3]} 17... Qxd6 {[%clk 0:02:23.6]} 18.
Rxd6 {[%clk 0:01:53.7]} 18... Nxc4 {[%clk 0:02:24.5]} 19. Rxc6 {[%clk
0:01:53.4]} 19... Nxb2 {[%clk 0:02:24.8]} 20. Rb1 {[%clk 0:01:46.7]} 20... Rab8
{[%clk 0:02:20.7]} 21. Bc1 {[%clk 0:01:36.2]} 21... Nd1 {[%clk 0:01:47.6]} 22.
Rxb8 {[%clk 0:01:32.2]} 22... Rxb8 {[%clk 0:01:48.5]} 23. Nxd1 {[%clk
0:01:31.4]} 23... h5 {[%clk 0:01:48.5]} 24. Bb2 {[%clk 0:01:12.6]} 24... Be4
{[%clk 0:01:42.1]} 25. Rd6 {[%clk 0:00:54.3]} 25... Bf3 {[%clk 0:01:35.9]} 26.
c4 {[%clk 0:00:37]} 26... Bxd1 {[%clk 0:01:33.7]} 27. Rxd1 {[%clk 0:00:37.9]}
27... Rxb2 {[%clk 0:01:33.9]} 28. Rc1 {[%clk 0:00:35.5]} 28... Rxa2 {[%clk
0:01:24.9]} 29. c5 {[%clk 0:00:31.1]} 29... Rb2 {[%clk 0:01:24.6]} 30. c6 {[%clk
0:00:28.7]} 30... Rb8 {[%clk 0:01:24.4]} 31. gxh5 {[%clk 0:00:16.9]} 31... Kf8
{[%clk 0:01:23.4]} 32. Kg2 {[%clk 0:00:17.5]} 32... Ke7 {[%clk 0:01:23.6]} 33.
Kf3 {[%clk 0:00:18]} 33... f5 {[%clk 0:01:23.6]} 34. Ke3 {[%clk 0:00:17.1]}
34... Kd6 {[%clk 0:01:23.6]} 35. Ra1 {[%clk 0:00:16]} 35... Rb3+ {[%clk
0:01:20.2]} 36. Ke2 {[%clk 0:00:15.2]} 36... Rh3 {[%clk 0:01:14.4]} 37. Rxa7
{[%clk 0:00:14.5]} 37... Kxc6 {[%clk 0:01:14.6]} 38. Rxg7 {[%clk 0:00:14.2]}
38... Rxh5 {[%clk 0:01:15]} 39. Rg2 {[%clk 0:00:12.1]} 39... Kd5 {[%clk
0:01:15.2]} 40. Ke3 {[%clk 0:00:11.7]} 40... f4+ {[%clk 0:01:14.7]} 41. Kf3
{[%clk 0:00:11.2]} 41... Rh3+ {[%clk 0:01:14.8]} 42. Kg4 {[%clk 0:00:11.1]}
42... Rh8 {[%clk 0:01:15]} 43. Kf3 {[%clk 0:00:10.3]} 43... Kd4 {[%clk
0:01:11.6]} 44. Rg8 {[%clk 0:00:06.7]} 44... Rxh2 {[%clk 0:01:11.1]} 45. Rd8+
{[%clk 0:00:06.2]} 45... Kc5 {[%clk 0:01:10.7]} 46. Re8 {[%clk 0:00:05.8]} 46...
Kd6 {[%clk 0:01:10.1]} 47. Rd8+ {[%clk 0:00:05.9]} 47... Ke6 {[%clk 0:01:10.3]}
48. Re8+ {[%clk 0:00:06]} 48... Kf6 {[%clk 0:01:10]} 49. Rf8+ {[%clk 0:00:05.3]}
49... Ke7 {[%clk 0:01:10.2]} 50. Rg8 {[%clk 0:00:05.8]} 50... Kf7 {[%clk
0:01:09.7]} 51. Rg5 {[%clk 0:00:05.2]} 51... Kf6 {[%clk 0:01:09.7]} 52. Rg8
{[%clk 0:00:05.3]} 52... Rh7 {[%clk 0:01:08.9]} 53. Ke4 {[%clk 0:00:04.3]} 53...
Re7 {[%clk 0:01:05.9]} 54. Rf8+ {[%clk 0:00:04]} 54... Ke6 {[%clk 0:01:05.7]}
55. Rf5 {[%clk 0:00:03.6]} 55... Kd6 {[%clk 0:01:06.6]} 56. Rf6+ {[%clk
0:00:04.1]} 56... Kc5 {[%clk 0:01:06.1]} 57. Rf5 {[%clk 0:00:03.2]} 57... Kd6
{[%clk 0:01:01.3]} 58. Rf6+ {[%clk 0:00:03.8]} 58... Re6 {[%clk 0:01:01.7]} 59.
Rf8 {[%clk 0:00:03.9]} 59... Kc5 {[%clk 0:01:00.7]} 60. Rc8+ {[%clk 0:00:03.9]}
60... Kb4 {[%clk 0:00:58.8]} 61. Kf5 {[%clk 0:00:03.4]} 61... Re7 {[%clk
0:00:58.3]} 62. Kf6 {[%clk 0:00:03.7]} 62... Rh7 {[%clk 0:00:56.9]} 63. Kxe5
{[%clk 0:00:03.8]} 63... f3 {[%clk 0:00:56.3]} 64. Kf4 {[%clk 0:00:03.7]} 64...
Rf7+ {[%clk 0:00:56.5]} 65. Ke3 {[%clk 0:00:03.7]} 65... Kb5 {[%clk 0:00:56.9]}
66. Re8 {[%clk 0:00:03.5]} 66... Kc5 {[%clk 0:00:56.7]} 67. Rd8 {[%clk
0:00:03.2]} 67... Kc4 {[%clk 0:00:46.9]} 68. Rd4+ {[%clk 0:00:03]} 68... Kc5
{[%clk 0:00:47]} 69. Rf4 {[%clk 0:00:03.4]} 69... Rxf4 {[%clk 0:00:45.4]} 70.
Kxf4 {[%clk 0:00:04.3]} 70... Kd5 {[%clk 0:00:46.3]} 71. Kxf3 {[%clk 0:00:05.1]}
71... Ke6 {[%clk 0:00:47.2]} 72. Kg4 {[%clk 0:00:04.3]} 72... Kf6 {[%clk
0:00:46.7]} 73. f4 {[%clk 0:00:05.2]} 73... Kg6 {[%clk 0:00:47]} 74. f5+ {[%clk
0:00:05.7]} 74... Kf6 {[%clk 0:00:47.4]} 75. Kf4 {[%clk 0:00:06.6]} 75... Kf7
{[%clk 0:00:47.8]} 76. Ke5 {[%clk 0:00:07.5]} 76... Ke7 {[%clk 0:00:47.9]} 77.
f6+ {[%clk 0:00:08.4]} 77... Kf7 {[%clk 0:00:48.1]} 78. Kf5 {[%clk 0:00:09.3]}
78... Kf8 {[%clk 0:00:48.4]} 79. Kg5 {[%clk 0:00:09.7]} 79... Kf7 {[%clk
0:00:48.2]} 80. Kf5 {[%clk 0:00:10.2]} 80... Kf8 {[%clk 0:00:48.6]} 81. Ke6
{[%clk 0:00:10.8]} 81... Ke8 {[%clk 0:00:49]} 82. f7+ {[%clk 0:00:11]} 82... Kf8
{[%clk 0:00:49.2]} 83. Kf6 {[%clk 0:00:11.9]} 1/2-1/2

[Event "*** Titled Tuesday Blitz"]
[Site "Chess.com"]
[Date "2021.04.06"]
[Round "6"]
[White "Hard_Utilizator"]
[Black "Shahaliyev"]
[Result "0-1"]
[WhiteElo "2501"]
[BlackElo "2660"]
[TimeControl "180+1"]
[EndTime "11:09:46 PDT"]
[Termination "Shahaliyev won on time"]

1. e4 {[%clk 0:03:00.9]} 1... d6 {[%clk 0:02:57.1]} 2. Nc3 {[%clk 0:03:00.4]}
2... Nf6 {[%clk 0:01:41.4]} 3. f4 {[%clk 0:03:00.3]} 3... e5 {[%clk 0:01:41.3]}
4. Nf3 {[%clk 0:02:55.3]} 4... Nc6 {[%clk 0:01:41.4]} 5. d3 {[%clk 0:02:53.8]}
5... Bg4 {[%clk 0:01:41.1]} 6. Be2 {[%clk 0:02:53.3]} 6... Bxf3 {[%clk
0:01:38.5]} 7. Bxf3 {[%clk 0:02:53.2]} 7... Nd4 {[%clk 0:01:39]} 8. O-O {[%clk
0:02:53.1]} 8... c6 {[%clk 0:01:39.6]} 9. Be3 {[%clk 0:02:52.7]} 9... Nd7 {[%clk
0:01:32.9]} 10. Kh1 {[%clk 0:02:52.7]} 10... Be7 {[%clk 0:01:33]} 11. Ne2 {[%clk
0:02:52.4]} 11... Nxf3 {[%clk 0:01:27.9]} 12. Rxf3 {[%clk 0:02:53.3]} 12... O-O
{[%clk 0:01:26.3]} 13. Qe1 {[%clk 0:02:53.1]} 13... d5 {[%clk 0:01:26.5]} 14.
exd5 {[%clk 0:02:51.4]} 14... cxd5 {[%clk 0:01:27.4]} 15. fxe5 {[%clk
0:02:50.3]} 15... Nxe5 {[%clk 0:01:28.2]} 16. Rh3 {[%clk 0:02:49.5]} 16... Ng4
{[%clk 0:01:23.2]} 17. Bd4 {[%clk 0:02:33.9]} 17... Bf6 {[%clk 0:01:23.1]} 18.
Qg3 {[%clk 0:02:31.8]} 18... Bxd4 {[%clk 0:01:21.3]} 19. Nxd4 {[%clk 0:02:19.4]}
19... Qd7 {[%clk 0:01:21.8]} 20. Rh4 {[%clk 0:02:15.1]} 20... f5 {[%clk
0:01:19.8]} 21. Rf1 {[%clk 0:02:14.2]} 21... g6 {[%clk 0:01:19.7]} 22. h3 {[%clk
0:02:13.3]} 22... Nf6 {[%clk 0:01:19.2]} 23. Nxf5 {[%clk 0:02:12.6]} 23... Rae8
{[%clk 0:01:09.6]} 24. Nd4 {[%clk 0:02:03.1]} 24... Qg7 {[%clk 0:00:52.1]} 25.
Rhf4 {[%clk 0:01:55]} 25... Nh5 {[%clk 0:00:43.7]} 26. Rxf8+ {[%clk 0:01:55.9]}
26... Rxf8 {[%clk 0:00:44.3]} 27. Rxf8+ {[%clk 0:01:56.3]} 27... Qxf8 {[%clk
0:00:44.8]} 28. Qf3 {[%clk 0:01:56.5]} 28... Qc5 {[%clk 0:00:40.8]} 29. c3
{[%clk 0:01:54.3]} 29... Qd6 {[%clk 0:00:38.2]} 30. Ne2 {[%clk 0:01:51.7]} 30...
b6 {[%clk 0:00:32.3]} 31. g4 {[%clk 0:01:47.5]} 31... Nf6 {[%clk 0:00:31.6]} 32.
Kg2 {[%clk 0:01:46.4]} 32... Kg7 {[%clk 0:00:31.9]} 33. Nf4 {[%clk 0:01:43.1]}
33... Qe5 {[%clk 0:00:29.8]} 34. Ne2 {[%clk 0:01:34.1]} 34... h5 {[%clk
0:00:26.5]} 35. Nd4 {[%clk 0:01:27.5]} 35... hxg4 {[%clk 0:00:26]} 36. hxg4
{[%clk 0:01:28.4]} 36... Qe1 {[%clk 0:00:20.7]} 37. Qf4 {[%clk 0:00:40.5]} 37...
Qh4 {[%clk 0:00:11.5]} 38. Ne6+ {[%clk 0:00:39.7]} 38... Kf7 {[%clk 0:00:08]}
39. Ng5+ {[%clk 0:00:35]} 39... Kg7 {[%clk 0:00:08.4]} 40. Ne6+ {[%clk
0:00:28.4]} 40... Kf7 {[%clk 0:00:08.5]} 41. g5 {[%clk 0:00:25.6]} 41... Qg4+
{[%clk 0:00:06]} 42. Qxg4 {[%clk 0:00:23]} 42... Nxg4 {[%clk 0:00:06.9]} 43. Nf4
{[%clk 0:00:20.6]} 43... Ne3+ {[%clk 0:00:07]} 44. Kf3 {[%clk 0:00:20.4]} 44...
Nd1 {[%clk 0:00:07.9]} 45. Nxd5 {[%clk 0:00:19.7]} 45... Nxb2 {[%clk 0:00:08.4]}
46. c4 {[%clk 0:00:16.7]} 46... Ke6 {[%clk 0:00:08.8]} 47. Ke4 {[%clk
0:00:15.9]} 47... Na4 {[%clk 0:00:08.5]} 48. Nf4+ {[%clk 0:00:16.4]} 48... Kf7
{[%clk 0:00:08.4]} 49. d4 {[%clk 0:00:16.8]} 49... Nc3+ {[%clk 0:00:08.9]} 50.
Ke5 {[%clk 0:00:17.3]} 50... Nxa2 {[%clk 0:00:09.3]} 51. d5 {[%clk 0:00:17.3]}
51... Nb4 {[%clk 0:00:10]} 52. d6 {[%clk 0:00:12.4]} 52... a5 {[%clk 0:00:10.3]}
53. d7 {[%clk 0:00:09.1]} 53... a4 {[%clk 0:00:09.7]} 54. Ne6 {[%clk 0:00:06.2]}
54... Nc6+ {[%clk 0:00:04.9]} 55. Kd6 {[%clk 0:00:06.7]} 55... a3 {[%clk
0:00:02.4]} 56. Kxc6 {[%clk 0:00:06.5]} 56... a2 {[%clk 0:00:03.3]} 57. d8=Q
{[%clk 0:00:06.9]} 57... a1=Q {[%clk 0:00:03.7]} 58. Qd7+ {[%clk 0:00:06.7]}
58... Kg8 {[%clk 0:00:04.3]} 59. Qe8+ {[%clk 0:00:06.8]} 59... Kh7 {[%clk
0:00:04.4]} 60. Qf7+ {[%clk 0:00:06.6]} 60... Kh8 {[%clk 0:00:04.4]} 61. Qxg6
{[%clk 0:00:05.6]} 61... Qa4+ {[%clk 0:00:04.6]} 62. Kd5 {[%clk 0:00:04.7]}
62... Qd1+ {[%clk 0:00:03.5]} 63. Nd4 {[%clk 0:00:05.2]} 63... b5 {[%clk
0:00:02.8]} 64. Qf6+ {[%clk 0:00:03.6]} 64... Kh7 {[%clk 0:00:03.1]} 65. g6+
{[%clk 0:00:03.6]} 65... Kh6 {[%clk 0:00:03.7]} 66. g7+ {[%clk 0:00:04]} 66...
Kh5 {[%clk 0:00:04]} 67. Qf5+ {[%clk 0:00:01.3]} 67... Kh6 {[%clk 0:00:03.7]}
0-1

[Event "*** Titled Tuesday Blitz"]
[Site "Chess.com"]
[Date "2021.04.06"]
[Round "6"]
[White "kingofthenil"]
[Black "Chigorinetz"]
[Result "0-1"]
[WhiteElo "2621"]
[BlackElo "2523"]
[TimeControl "180+1"]
[EndTime "11:09:53 PDT"]
[Termination "Chigorinetz won by checkmate"]

1. e3 {[%clk 0:02:50.6]} 1... e5 {[%clk 0:02:57.9]} 2. Ke2 {[%clk 0:02:50.4]}
2... d5 {[%clk 0:02:56.9]} 3. Kf3 {[%clk 0:02:50.4]} 3... Nc6 {[%clk 0:02:56.4]}
4. Ke2 {[%clk 0:02:49.7]} 4... f5 {[%clk 0:02:55.2]} 5. Ke1 {[%clk 0:02:50]}
5... Nf6 {[%clk 0:02:55.5]} 6. Bb5 {[%clk 0:02:50.6]} 6... Bd6 {[%clk 0:02:47]}
7. d4 {[%clk 0:02:45.8]} 7... O-O {[%clk 0:02:45.3]} 8. Ne2 {[%clk 0:02:06.5]}
8... Qe7 {[%clk 0:02:40.8]} 9. c4 {[%clk 0:02:03.8]} 9... dxc4 {[%clk
0:02:38.1]} 10. Bxc4+ {[%clk 0:01:56.7]} 10... Kh8 {[%clk 0:02:37.9]} 11. Nbc3
{[%clk 0:01:55.9]} 11... exd4 {[%clk 0:02:28.7]} 12. exd4 {[%clk 0:01:45.5]}
12... f4 {[%clk 0:02:27]} 13. f3 {[%clk 0:01:38.5]} 13... Bf5 {[%clk 0:02:23]}
14. Kf2 {[%clk 0:01:38.1]} 14... Nh5 {[%clk 0:02:19]} 15. Rf1 {[%clk 0:01:31.4]}
15... Rad8 {[%clk 0:02:17.6]} 16. Kg1 {[%clk 0:01:24.6]} 16... Qh4 {[%clk
0:02:12.1]} 17. Qe1 {[%clk 0:01:01.9]} 17... Qxe1 {[%clk 0:01:50.6]} 18. Rxe1
{[%clk 0:01:02.8]} 18... Nxd4 {[%clk 0:01:46.5]} 19. Nxd4 {[%clk 0:01:02.8]}
19... Bc5 {[%clk 0:01:46.4]} 20. Ne2 {[%clk 0:01:03.3]} 20... Bxd4+ {[%clk
0:01:38.6]} 21. Nxd4 {[%clk 0:01:04.2]} 21... Rxd4 {[%clk 0:01:38.8]} 22. b3
{[%clk 0:01:04.5]} 22... c5 {[%clk 0:01:21.8]} 23. Ba3 {[%clk 0:01:01.5]} 23...
b6 {[%clk 0:01:21.1]} 24. Rad1 {[%clk 0:01:01]} 24... Rfd8 {[%clk 0:01:18.1]}
25. Rxd4 {[%clk 0:01:00.3]} 25... cxd4 {[%clk 0:01:18.4]} 26. Kf2 {[%clk
0:00:54.9]} 26... Nf6 {[%clk 0:01:17.8]} 27. g4 {[%clk 0:00:52.9]} 27... fxg3+
{[%clk 0:01:16.4]} 28. hxg3 {[%clk 0:00:53.8]} 28... d3 {[%clk 0:01:14.6]} 29.
Rd1 {[%clk 0:00:52.9]} 29... h5 {[%clk 0:01:09.8]} 30. Bb2 {[%clk 0:00:49.7]}
30... Kh7 {[%clk 0:01:07.1]} 31. Bxf6 {[%clk 0:00:39.4]} 31... gxf6 {[%clk
0:01:06.5]} 32. Ke3 {[%clk 0:00:40.3]} 32... Kg6 {[%clk 0:00:55.6]} 33. Kf4
{[%clk 0:00:14.7]} 33... d2 {[%clk 0:00:42]} 34. Ke3 {[%clk 0:00:14]} 34... Bb1
{[%clk 0:00:39.8]} 35. a4 {[%clk 0:00:10.2]} 35... f5 {[%clk 0:00:36.9]} 36.
Rxd2 {[%clk 0:00:09.5]} 36... Rxd2 {[%clk 0:00:36.7]} 37. Kxd2 {[%clk
0:00:10.4]} 37... f4 {[%clk 0:00:37.1]} 38. gxf4 {[%clk 0:00:07.9]} 38... h4
{[%clk 0:00:32.4]} 39. Ke3 {[%clk 0:00:08.8]} 39... a5 {[%clk 0:00:29.1]} 40.
Be6 {[%clk 0:00:07.9]} 40... Bc2 {[%clk 0:00:25.7]} 41. Kf2 {[%clk 0:00:05.5]}
41... Kf6 {[%clk 0:00:25.2]} 42. Bc4 {[%clk 0:00:04.5]} 42... Kf5 {[%clk
0:00:23.6]} 43. Bf7 {[%clk 0:00:01.9]} 43... Kxf4 {[%clk 0:00:22.2]} 44. Be6
{[%clk 0:00:02.3]} 44... Bd1 {[%clk 0:00:18.5]} 45. Bd5 {[%clk 0:00:01.9]} 45...
h3 {[%clk 0:00:17.2]} 46. Be6 {[%clk 0:00:01.6]} 46... h2 {[%clk 0:00:10.1]} 47.
Kg2 {[%clk 0:00:02.5]} 47... Bxf3+ {[%clk 0:00:09.9]} 48. Kxh2 {[%clk
0:00:02.9]} 48... Ke3 {[%clk 0:00:10.5]} 49. Kg3 {[%clk 0:00:02.8]} 49... Bd1
{[%clk 0:00:10.6]} 50. Bf7 {[%clk 0:00:01.5]} 50... Bc2 {[%clk 0:00:10.2]} 51.
Kg4 {[%clk 0:00:01.5]} 51... Kd4 {[%clk 0:00:10.1]} 52. Kf3 {[%clk 0:00:02.4]}
52... Kc3 {[%clk 0:00:10.3]} 53. Ke2 {[%clk 0:00:02.9]} 53... Bxb3 {[%clk
0:00:10.6]} 54. Be8 {[%clk 0:00:03.6]} 54... Kb4 {[%clk 0:00:10.8]} 55. Kd2
{[%clk 0:00:04.2]} 55... Bxa4 {[%clk 0:00:11]} 56. Bg6 {[%clk 0:00:05.1]} 56...
Bb3 {[%clk 0:00:11]} 57. Kc1 {[%clk 0:00:06]} 57... a4 {[%clk 0:00:11.1]} 58.
Kb2 {[%clk 0:00:06.9]} 58... a3+ {[%clk 0:00:11.4]} 59. Ka1 {[%clk 0:00:07.8]}
59... Kc3 {[%clk 0:00:11.3]} 60. Be8 {[%clk 0:00:07.3]} 60... Bc4 {[%clk
0:00:10.9]} 61. Bd7 {[%clk 0:00:06.9]} 61... Kb4 {[%clk 0:00:11.1]} 62. Be8
{[%clk 0:00:06.9]} 62... Bb5 {[%clk 0:00:11.3]} 63. Bg6 {[%clk 0:00:06.7]} 63...
Ba4 {[%clk 0:00:11.5]} 64. Bd3 {[%clk 0:00:06.2]} 64... Bb3 {[%clk 0:00:11.3]}
65. Ba6 {[%clk 0:00:05.9]} 65... Kc5 {[%clk 0:00:10.7]} 66. Be2 {[%clk
0:00:06.1]} 66... Bc4 {[%clk 0:00:10.9]} 67. Bg4 {[%clk 0:00:04.5]} 67... b5
{[%clk 0:00:11.1]} 68. Bd7 {[%clk 0:00:04.3]} 68... b4 {[%clk 0:00:11.3]} 69.
Ba4 {[%clk 0:00:05.2]} 69... Kd4 {[%clk 0:00:11.2]} 70. Bd1 {[%clk 0:00:05]}
70... Kc3 {[%clk 0:00:11.5]} 71. Ba4 {[%clk 0:00:05.3]} 71... Ba6 {[%clk
0:00:10.9]} 72. Bd1 {[%clk 0:00:05.2]} 72... Bd3 {[%clk 0:00:10.8]} 73. Ba4
{[%clk 0:00:04.9]} 73... Bc2 {[%clk 0:00:11]} 74. Bc6 {[%clk 0:00:01.4]} 74...
b3 {[%clk 0:00:11.1]} 75. Bd5 {[%clk 0:00:01.2]} 75... b2+ {[%clk 0:00:11.3]}
76. Ka2 {[%clk 0:00:02.1]} 76... b1=Q+ {[%clk 0:00:11.5]} 77. Kxa3 {[%clk
0:00:03]} 77... Qb2# {[%clk 0:00:11.1]} 0-1